{"text_format":"3","workbook":"xlsx","n_sheets":1,"sheets":["Anexo No. 2"],"not_rendered":{"external_links":2,"defined_names":150},"read":"whole","date_system":"1900"}

{"sheet":"Anexo No. 2","index":0,"n_rows":205,"n_cols":7,"rows_kept":205,"merged":[[1,1,1,6],[3,1,3,6],[90,1,90,5],[91,1,91,4],[92,1,92,5],[94,1,94,6],[187,1,187,5],[188,1,188,4],[189,1,189,4],[190,1,190,5],[192,1,192,4],[192,5,192,6]]}
[]
[null,"ANEXO No. 2 - FORMULARIO DE PRECIOS Y CANTIDADES\nDISEÑO, SUMINISTRO, INSTALACIÓN, PRUEBAS Y PUESTA EN FUNCIONAMIENTO, SOPORTE Y MANTENIMIENTO DEL CIRCUITO CERRADO DE TELEVISIÓN (CCTV) Y SISTEMA DE CONTROL DE ACCESO PARA LAS ESTACIONES DE LA POLICÍA NACIONAL."]
[]
[null,"SUMINISTRO EQUIPOS Y ELEMENTOS"]
[null,"ÍTEM","DESCRIPCIÓN","UND","CANTIDAD","VALOR UNITARIO","VALOR PARCIAL"]
[null,null,"CCTV"]
[null,1,"SUMINISTRO CÁMARA PANORÁMICA 360°","UND",3,null,{"$f":"F7*E7","v":0}]
[null,2,"SUMINISTRO CÁMARA TIPO 1 - BULLET","UND",49,null,{"$f":"F8*E8","v":0}]
[null,3,"SUMINISTRO CÁMARA TIPO 2 - MINIDOMO","UND",10,null,0]
[null,4,"SUMINISTRO CÁMARA TIPO 3 - RECONOCIMIENTO FACIAL","UND",4,null,0]
[null,5,"SUMINISTRO CÁMARA TIPO 4 - PTZ  ","UND",14,null,0]
[null,6,"SUMINISTRO CÁMARA DE INSPECCIÓN VEHICULAR DE ALTO CONTRASTE","UND",3,null,0]
[null,7,"SUMINISTRO CÁMARA LPR ","UND",6,null,0]
[null,8,"SUMINISTRO CODIFICADORES DE VIDEO PARA CAMARAS EXISTENTES DE 32 CH","UND",1,null,0]
[null,9,"SUMINISTRO BRAZO ESCUALIZABLE ","UND",17,null,0]
[null,10,"SUMINISTRO ESTACIÓN DE TRABAJO CCTV","UND",4,null,0]
[null,11,"SUMINISTRO UPS 1 KVA","UND",12,null,0]
[null,12,"SUMINISTRO GABINETE PARA EQUIPOS ACTIVOS DE  CÁMARA ","UND",12,null,0]
[null,null,"VIDEOWALL"]
[null,14,"SUMINISTRO MONITOR PARA  VIDEO WALL  55\"","UND",5,null,0]
[null,15,"SUMINISTRO CONTROLADOR DE VIDEO WALL  3X1 O 4X1 0 2X2","UND",1,null,0]
[null,16,"SUMINISTRO JOYSTICK DE OPERACIÓN","UND",4,null,0]
[null,null,"CONECTIVIDAD"]
[null,17,"SUMINISTRO SWITCH POE 8 PUERTOS ","UND",28,null,0]
[null,18,"SUMINISTRO SWITCH  24 PUERTOS COBRE + 4 SFP","UND",4,null,0]
[null,19,"SUMINISTRO EQUIPO DE TRANSMISIÓN Y RECEPCIÓN MICROONDAS","UND",2,null,0]
[null,20,"SUMINISTRO RACK  5U ","UND",9,null,0]
[null,21,"SUMINISTRO RACK 10U","UND",4,null,0]
[null,22,"SUMINISTRO PATCH PANEL 24 PUERTOS CAT 6A","UND",5,null,0]
[null,23,"SUMINISTRO PATCH PANEL 12 PUERTOS CAT 6A","UND",13,null,0]
[null,24,"SUMINISTRO JACK 6A","UND",276,null,0]
[null,25,"SUMINISTRO CABLEADO UTP ","ML ",6201,null,0]
[null,null,"SISTEMA DE CONTROL DE ACCESO"]
[null,26,"SUMINISTRO MÓDULO DE RECONOCIMIENTO FACIAL PARA PASILLO MOTORIZADO ","UND",4,null,0]
[null,27,"SUMINISTRO MÓDULO DE RECONOCIMIENTO FACIAL PARA TORNIQUETE","UND",6,null,0]
[null,28,"SUMINISTRO CONTROLADORA  DE UNA PUERTA - MOVILIDAD REDUCIDA (INCLUYE BOTÓN DE APERTURA DESDE GUARDIA)","UND",4,null,0]
[null,29,"SUMINISTRO CONTROLADORA DE DOS PUERTAS - PASILLO MOTORIZADO   (INCLUYE DOS MÓDULO DE SEGURIDAD )","UND",2,null,0]
[null,30,"SUMINISTRO CONTROLADORA DE DOS PUERTAS - TORNIQUETES  (INCLUYE DOS MÓDULO DE SEGURIDAD)","UND",3,null,0]
[null,31,"SUMINISTRO GABINETE PARA CONTROLADORA","UND",4,null,0]
[null,32,"SUMINISTRO ARCO DETECTOR DE METALES ","UND",1,null,0]
[null,33,"SUMINISTRO SISTEMA DE INSPECCIÓN DE RAYOS X","UND",1,null,0]
[null,34,"SUMINISTRO DETECTOR DE METALES PORTÁTIL ","UND",8,null,0]
[null,35,"SUMINISTRO ESTACIÓN DE TRABAJO CONTROL DE VISITANTES ","UND",4,null,0]
[null,36,"SUMINISTRO PASILLO MOTORIZADO  BASTIDOR IZQUIERDO CON CRISTALES DE  UNA ALTURA MÍNIMA 1,5 M","UND",1,null,0]
[null,37,"SUMINISTRO PASILLO MOTORIZADO BASTIDOR CENTRAL CON CRISTALES DE UNA ALTURA MÍNIMA 1,5 M","UND",1,null,0]
[null,38,"SUMINISTRO PASILLO MOTORIZADO BASTIDOR DERECHO CON CRISTALES DE UNA ALTURA MÍNIMA 1,5 M","UND",1,null,0]
[null,39,"SUMINISTRO TORNIQUETE  ","UND",3,null,0]
[null,40,"SUMINISTRO LECTORES DE HUELLA/TARJETA MIFAR","UND",10,null,0]
[null,41,"SUMINISTRO DISPOSITIVO DE ENROLAMIENTO BIOMÉTRICO USB PARA ESTACIÓN DE TRABAJO ","UND",4,null,0]
[null,42,"SUMINISTRO DISPOSITIVO DE ENROLAMIENTO TARJETAS MIFARE USB PARA ESTACIÓN DE TRABAJO ","UND",4,null,0]
[null,43,"SUMINISTRO TARJETAS MIFARE","UND",600,null,0]
[null,44,"SUMINISTRO BOLARDO ELECTROMECÁNICO ","UND",10,null,0]
[null,45,"SUMINISTRO CONTROLADOR CENTRAL DE MANDO DE BOLARDOS ","UND",5,null,0]
[null,46,"SUMINISTRO BOTÓN DE ACCESO MANUAL DE BOLARDO","UND",3,null,0]
[null,47,"SUMINISTRO SEMÁFORO INDICADOR PARA BOLARDOS ","UND",6,null,0]
[null,48,"SUMINISTRO PUERTA DE MOVILIDAD REDUCIDA CON ELECTROIMÁN ","UND",4,null,0]
[null,49,"SUMINISTRO RECEPCIÓN CON SILLA ERGONÓMICA CON MECANISMO Y SIN BRAZOS","UND",1,null,0]
[null,null,"SOFTWARE Y LICENCIAS"]
[null,50,"SUMINISTRO SOFTWARE CONTROL DE ACCESO ","UND",4,null,0]
[null,51,"SUMINISTRO SOFTWARE DE GESTIÓN DE VIDEO (VMS) INCLUYE VISUALIZACIÓN DE ANALÍTICAS LPR Y RECONOCIMIENTO FACIAL ","UND",4,null,0]
[null,52,"SUMINISTRO SOFTWARE CÁMARA DE INSPECCIÓN VEHICULAR DE ALTO CONTRASTE","UND",3,null,0]
[null,53,"SUMINISTRO LICENCIA DE CÁMARA (POR CANAL) ","UND",174,null,0]
[null,54,"SUMINISTRO LICENCIA CÁMARA DE INSPECCIÓN VEHICULAR DE ALTO CONTRASTE","UND",3,null,0]
[null,55,"SUMINISTRO LICENCIA CÁMARA LPR ","UND",6,null,0]
[null,56,"SUMINISTRO LICENCIA CÁMARA RECONOCIMIENTO FACIAL ","UND",4,null,0]
[null,57,"SUMINISTRO LICENCIA DE CONTROL DE ACCESO POR PUERTA ","UND",24,null,0]
[null,null,"SISTEMA DE VMS Y DE GRABACION "]
[null,58,"SUMINISTRO SISTEMA DE GRABACIÓN EN RED DE 66T","UND",3,null,0]
[null,59,"SUMINISTRO SISTEMA DE GRABACIÓN EN RED DE 70 T","UND",1,null,{"$f":"F69*E69","v":0}]
[null,60,"SUMINISTRO SERVIDOR CENTRAL VMS","UND",4,null,0]
[null,null,"INFRAESTRUCTURA Y ADECUACIONES SUBSISTEMAS"]
[null,61,"SUMINISTRO SEPARADORES VIALES  LARGO 40CM  (MIN 15CM ANCHO 8CM ALTO)","UND",20,null,0]
[null,62,"SUMINISTRO SEPARADORES VIALES ALTO MIN 50 CM","UND",14,null,0]
[null,63,"SUMINISTRO CORAZA METÁLICA 3/4","ML ",127,null,0]
[null,64,"SUMINISTRO TUBERÍA IMC 3/4","ML ",1847,null,0]
[null,65,"SUMINISTRO CANALETA METÁLICA CON DIVISIÓN 8X4 CM","ML ",53,null,0]
[null,66,"SUMINISTRO CANALETA ELÉCTRICA DEXSON CON DIVISIÓN 60X40 MM","ML ",63,null,0]
[null,68,"SUMINISTRO BARANDA METÁLICA","UND",7,null,0]
[null,70,"SUMINISTRO RAMPA PORTÁTIL ACCESO MOVILIDAD REDUCIDA","UND",1,null,0]
[null,74,"SUMINISTRO PUERTA DE METÁLICA ","UND",2,null,0]
[null,75,"SUMINISTRO SISTEMA DE CONTROL DE ACCESO CONFORMADO DE LECTORA BIOMÉTRICA, ELECTROIMÁN, Y BRAZO BASCULANTE PARA PUERTA METÁLICA","UND",2,null,0]
[null,79,"SUMINISTRO POSTE DE SOPORTE 8M ","UND",9,null,0]
[null,80,"SUMINISTRO POSTE DE SOPORTE 12M ","UND",5,null,0]
[null,null,"ELECTRICOS "]
[null,81,"SUMINISTRO CABLEADO ELÉCTRICO DE POTENCIA ","ML ",1050,null,0]
[null,82,"SUMINISTRO REFLECTOR ","UND",5,null,0]
[null,83,"SUMINISTRO UPS 3 KVA","UND",2,null,0]
[null,84,"SUMINISTRO TABLERO ELÉCTRICO ","UND",3,null,0]
[null,85,"SUMINISTRO AIRE ACONDICIONADO MINI SPLIT DE 12000 BTU ","UND",2,null,0]
[null,86,"SUMINISTRO AIRE ACONDICIONADO MINI SPLIT DE 24000 BTU ","UND",1,null,0]
[null,"SUBTOTAL",{"$nulls":4},{"$f":"SUM(G7:G90)","v":0}]
[null,"IVA",{"$nulls":3},{"v":0.19,"d":"19%"},{"$f":"ROUND(G91*F92,0)","v":0}]
[null,"TOTAL ",{"$nulls":4},{"$f":"G91+G92","v":0}]
[]
[null,"IMPLEMENTACIÓN EQUIPOS Y ELEMENTOS"]
[null,"ÍTEM","DESCRIPCIÓN","UND","CANTIDAD","VALOR UNITARIO","VALOR PARCIAL"]
[null,null,"CCTV"]
[null,1,"INSTALACION CÁMARA PANORÁMICA 360°","UND",3,null,{"$f":"F98*E98","v":0}]
[null,2,"INSTALACION CÁMARA TIPO 1 - BULLET","UND",49,null,{"$f":"F99*E99","v":0}]
[null,3,"INSTALACION CÁMARA TIPO 2 - MINIDOMO","UND",10,null,0]
[null,4,"INSTALACION CÁMARA TIPO 3 - RECONOCIMIENTO FACIAL","UND",4,null,0]
[null,5,"INSTALACION CÁMARA TIPO 4 - PTZ  ","UND",14,null,0]
[null,6,"INSTALACION CÁMARA DE INSPECCIÓN VEHICULAR DE ALTO CONTRASTE","UND",3,null,0]
[null,7,"INSTALACION CÁMARA LPR ","UND",6,null,0]
[null,8,"INSTALACION CODIFICADORES DE VIDEO PARA CAMARAS EXISTENTES DE 32 CH","UND",1,null,0]
[null,9,"INSTALACION BRAZO ESCUALIZABLE ","UND",17,null,0]
[null,10,"INSTALACION ESTACIÓN DE TRABAJO CCTV","UND",4,null,0]
[null,11,"INSTALACION UPS 1 KVA","UND",12,null,0]
[null,12,"INSTALACION GABINETE PARA EQUIPOS ACTIVOS DE  CÁMARA ","UND",12,null,0]
[null,13,"INSTALACION REUBICACIÓN CÁMARA EXISTENTE PATIO","UND",1,null,0]
[null,null,"VIDEOWALL"]
[null,14,"INSTALACION MONITOR PARA  VIDEO WALL  55\"","UND",5,null,0]
[null,15,"INSTALACION CONTROLADOR DE VIDEO WALL  3X1 O 4X1 0 2X2","UND",1,null,0]
[null,16,"INSTALACION JOYSTICK DE OPERACIÓN","UND",4,null,0]
[null,null,"CONECTIVIDAD"]
[null,17,"INSTALACION SWITCH POE 8 PUERTOS ","UND",28,null,0]
[null,18,"INSTALACION SWITCH  24 PUERTOS COBRE + 4 SFP","UND",4,null,0]
[null,19,"INSTALACION EQUIPO DE TRANSMISIÓN Y RECEPCIÓN MICROONDAS","UND",2,null,0]
[null,20,"INSTALACION RACK  5U ","UND",9,null,0]
[null,21,"INSTALACION RACK 10U","UND",4,null,0]
[null,22,"INSTALACION PATCH PANEL 24 PUERTOS CAT 6A","UND",5,null,0]
[null,23,"INSTALACION PATCH PANEL 12 PUERTOS CAT 6A","UND",13,null,0]
[null,24,"INSTALACION JACK 6A","UND",276,null,0]
[null,25,"INSTALACION CABLEADO UTP ","ML ",6201,null,0]
[null,null,"SISTEMA DE CONTROL DE ACCESO"]
[null,26,"INSTALACION MÓDULO DE RECONOCIMIENTO FACIAL PARA PASILLO MOTORIZADO ","UND",4,null,0]
[null,27,"INSTALACION MÓDULO DE RECONOCIMIENTO FACIAL PARA TORNIQUETE","UND",6,null,0]
[null,28,"INSTALACION CONTROLADORA  DE UNA PUERTA - MOVILIDAD REDUCIDA (INCLUYE BOTÓN DE APERTURA DESDE GUARDIA)","UND",4,null,0]
[null,29,"INSTALACION CONTROLADORA DE DOS PUERTAS - PASILLO MOTORIZADO   (INCLUYE DOS MÓDULO DE SEGURIDAD )","UND",2,null,0]
[null,30,"INSTALACION CONTROLADORA DE DOS PUERTAS - TORNIQUETES  (INCLUYE DOS MÓDULO DE SEGURIDAD)","UND",3,null,0]
[null,31,"INSTALACION GABINETE PARA CONTROLADORA","UND",4,null,0]
[null,32,"INSTALACION ARCO DETECTOR DE METALES ","UND",1,null,0]
[null,33,"INSTALACION SISTEMA DE INSPECCIÓN DE RAYOS X","UND",1,null,0]
[null,35,"INSTALACION ESTACIÓN DE TRABAJO CONTROL DE VISITANTES ","UND",4,null,0]
[null,36,"INSTALACION PASILLO MOTORIZADO  BASTIDOR IZQUIERDO CON CRISTALES DE  UNA ALTURA MÍNIMA 1,5 M","UND",1,null,0]
[null,37,"INSTALACION PASILLO MOTORIZADO BASTIDOR CENTRAL CON CRISTALES DE UNA ALTURA MÍNIMA 1,5 M","UND",1,null,0]
[null,38,"INSTALACION PASILLO MOTORIZADO BASTIDOR DERECHO CON CRISTALES DE UNA ALTURA MÍNIMA 1,5 M","UND",1,null,0]
[null,39,"INSTALACION TORNIQUETE  ","UND",3,null,0]
[null,40,"INSTALACION LECTORES DE HUELLA/TARJETA MIFAR","UND",10,null,0]
[null,41,"INSTALACION DISPOSITIVO DE ENROLAMIENTO BIOMÉTRICO USB PARA ESTACIÓN DE TRABAJO ","UND",4,null,0]
[null,42,"INSTALACION DISPOSITIVO DE ENROLAMIENTO TARJETAS MIFARE USB PARA ESTACIÓN DE TRABAJO ","UND",4,null,0]
[null,44,"INSTALACION BOLARDO ELECTROMECÁNICO ","UND",10,null,0]
[null,45,"INSTALACION CONTROLADOR CENTRAL DE MANDO DE BOLARDOS ","UND",5,null,0]
[null,46,"INSTALACION BOTÓN DE ACCESO MANUAL DE BOLARDO","UND",3,null,0]
[null,47,"INSTALACION SEMÁFORO INDICADOR PARA BOLARDOS ","UND",6,null,0]
[null,48,"INSTALACION PUERTA DE MOVILIDAD REDUCIDA CON ELECTROIMÁN ","UND",4,null,0]
[null,49,"INSTALACION RECEPCIÓN CON SILLA ERGONÓMICA CON MECANISMO Y SIN BRAZOS","UND",1,null,0]
[null,null,"SOFTWARE Y LICENCIAS"]
[null,50,"INSTALACION SOFTWARE CONTROL DE ACCESO ","UND",4,null,0]
[null,51,"INSTALACION SOFTWARE DE GESTIÓN DE VIDEO (VMS) INCLUYE VISUALIZACIÓN DE ANALÍTICAS LPR Y RECONOCIMIENTO FACIAL ","UND",4,null,0]
[null,52,"INSTALACION SOFTWARE CÁMARA DE INSPECCIÓN VEHICULAR DE ALTO CONTRASTE","UND",3,null,0]
[null,53,"INSTALACION LICENCIA DE CÁMARA (POR CANAL) ","UND",174,null,0]
[null,54,"INSTALACION LICENCIA CÁMARA DE INSPECCIÓN VEHICULAR DE ALTO CONTRASTE","UND",3,null,0]
[null,55,"INSTALACION LICENCIA CÁMARA LPR ","UND",6,null,0]
[null,56,"INSTALACION LICENCIA CÁMARA RECONOCIMIENTO FACIAL ","UND",4,null,0]
[null,57,"INSTALACION LICENCIA DE CONTROL DE ACCESO POR PUERTA ","UND",24,null,0]
[null,null,"SISTEMA DE VMS Y DE GRABACION "]
[null,58,"INSTALACION SISTEMA DE GRABACIÓN EN RED DE 66T","UND",3,null,0]
[null,59,"INSTALACION SISTEMA DE GRABACIÓN EN RED DE 70 T","UND",1,null,{"$f":"F159*E159","v":0}]
[null,60,"INSTALACION SERVIDOR CENTRAL VMS","UND",4,null,0]
[null,null,"INFRAESTRUCTURA Y ADECUACIONES SUBSISTEMAS"]
[null,61,"INSTALACION SEPARADORES VIALES  LARGO 40CM  (MIN 15CM ANCHO 8CM ALTO)","UND",20,null,0]
[null,62,"INSTALACION SEPARADORES VIALES ALTO MIN 50 CM","UND",14,null,0]
[null,63,"INSTALACION CORAZA METÁLICA 3/4","ML ",127,null,0]
[null,64,"INSTALACION TUBERÍA IMC 3/4","ML ",1847,null,0]
[null,65,"INSTALACION CANALETA METÁLICA CON DIVISIÓN 8X4 CM","ML ",53,null,0]
[null,66,"INSTALACION CANALETA ELÉCTRICA DEXSON CON DIVISIÓN 60X40 MM","ML ",63,null,0]
[null,67,"INSTALACION ADECUACIÓN ANDEN 3X2 METROS","M2",6,null,0]
[null,68,"INSTALACION BARANDA METÁLICA","UND",7,null,0]
[null,69,"INSTALACION OBRAS CIVILES PARA ADECUACIÓN DE ACCESO GUARDIA ","UND",1,null,0]
[null,71,"INSTALACION ADECUACIONES ACCESO (DEMOLICIÓN Y ADECUACIÓN ZONA ESCALERAS) ","UND",2,null,0]
[null,72,"INSTALACION ADECUACIÓN RAMPA PARA ACCESO DE MOVILIDAD REDUCIDA ","UND",2,null,0]
[null,73,"INSTALACION DESMONTE  DE PUERTA DE MADERA EXISTENTE","UND",2,null,0]
[null,74,"INSTALACION PUERTA DE METÁLICA ","UND",2,null,0]
[null,75,"INSTALACION SISTEMA DE CONTROL DE ACCESO CONFORMADO DE LECTORA BIOMÉTRICA, ELECTROIMÁN, Y BRAZO BASCULANTE PARA PUERTA METÁLICA","UND",2,null,0]
[null,76,"INSTALACION CAJA DE REGISTRO DE PASO 30X30","UND",10,null,0]
[null,77,"INSTALACION CANALIZACIÓN TERRENO DURO ","UND",92,null,0]
[null,78,"INSTALACION CANALIZACIÓN TERRENO BLANDO ","UND",105,null,0]
[null,79,"INSTALACION POSTE DE SOPORTE 8M ","UND",9,null,0]
[null,80,"INSTALACION POSTE DE SOPORTE 12M ","UND",5,null,0]
[null,null,"ELECTRICOS "]
[null,81,"INSTALACION CABLEADO DE FUERZA ELÉCTRICO ","ML ",1050,null,0]
[null,82,"INSTALACION REFLECTOR ","UND",5,null,0]
[null,83,"INSTALACION UPS 3 KVA","UND",2,null,0]
[null,84,"INSTALACION TABLERO ELÉCTRICO ","UND",3,null,0]
[null,85,"INSTALACION AIRE ACONDICIONADO MINI SPLIT DE 12000 BTU ","UND",2,null,0]
[null,86,"INSTALACION AIRE ACONDICIONADO MINI SPLIT DE 24000 BTU ","UND",1,null,0]
[null,"TOTAL ",{"$nulls":4},{"$f":"SUM(G98:G187)","v":0}]
[null,"ADMINISTRACIÓN",{"$nulls":3},{"v":0.12,"d":"12%"},{"$f":"ROUND(G188*F189,0)","v":0}]
[null,"UTILIDAD",{"$nulls":3},{"v":0.08,"d":"8%"},{"$f":"ROUND(G188*F190,0)","v":0}]
[null,"TOTAL ",{"$nulls":4},{"$f":"G188+G189+G190","v":0}]
[]
[null,"TOTAL VALOR PROYECTO",{"$nulls":3},{"$f":"ROUND(G191+G93,0)","v":0},{"$f":"G190+G151","v":0}]
[]
[null,"Valor total en letras: ______________________________________________________"]
[]
[null,"Nombre del Representante Legal _____________________________________________"]
[null,"C. C. No._________________________________________________________________"]
[null,"Dirección de correo________________________________________________________"]
[null,"Dirección electrónica_______________________________________________________"]
[null,"Ciudad__________________________________________________________________"]
[]
[]
[null,"___________________________________________________"]
[null,"(Firma del Representante Legal)"]